bitfinex/quotes_SOLUSD_20251009
["timestamp","ask_amount","ask_price","bid_price","bid_amount"]
[1760037556405,0.52,218.25,218.18,32.3]
[1760037556700,16.03592046,218.26,218.19,0.69]
[1760037560510,16.03592046,218.26,218.16,0.69]
[1760037560511,0.52,218.25,218.16,0.69]
[1760037560679,20.8,218.21,218.11,10.87647521]
[1760037561001,20.8,218.17,218.07,33.01]
[1760037561175,3.59927719,218.16,218.07,33.01]
[1760037561380,0.52,218.15,218.07,33.01]
[1760037561587,0.52,218.14,218.04,0.69]
[1760037561889,0.52,218.13,218.04,0.69]
[1760037562287,3.59127113,218.13,218.04,0.69]
[1760037562694,5.10463231,218.12,218.03,32.44]
[1760037562893,0.52,218.11,218.03,32.44]
[1760037563090,0.52,218.11,218.04,0.69]
[1760037563517,16.04621309,218.12,218.04,0.69]
[1760037563886,43.82026975,218.15,218.05,10.87647521]
[1760037564085,43.82026975,218.15,218.06,0.69]
[1760037564830,16.5647419,218.14,218.05,0.69]
[1760037564988,5.10421197,218.14,218.05,0.69]
[1760037565796,16.5647419,218.14,218.05,0.69]
[1760037565995,0.52,218.13,218.05,0.69]
[1760037567112,4.58463231,218.12,218.05,5.27610217]
[1760037567405,0.52,218.11,218.05,80.3]
[1760037568098,4.58463231,218.12,218.05,80.99]
[1760037568408,0.52,218.11,218.05,80.3]
[1760037569290,4.58505272,218.1,218.05,80.3]
[1760037569490,5.10505272,218.1,218.05,80.3]
[1760037571116,0.52,218.09,218.05,80.3]
[1760037571326,0.52,218.08,218.03,80.4]
[1760037571897,16.04768454,218.1,218.03,80.4]
[1760037572097,32.88,218.09,218.03,80.4]
[1760037572624,4.58505272,218.1,218.04,0.66]
[1760037572913,4.58485689,218.11,218.04,0.66]
[1760037573104,4.58463231,218.12,218.04,5.24626703]
[1760037573313,4.58463231,218.12,218.05,0.66]
[1760037574812,4.58463231,218.12,218.05,5.24609843]
[1760037575119,4.58463231,218.12,218.06,0.66]
[1760037576306,4.58442213,218.13,218.06,0.66]
[1760037576816,0.52,218.12,218.05,0.66]
[1760037577004,4.58442213,218.13,218.07,0.66]
[1760037578000,0.52,218.18,218.08,10.87647521]
[1760037578316,0.52,218.18,218.09,0.66]
[1760037578317,16.04253563,218.17,218.09,0.66]
[1760037578525,16.04253563,218.17,218.09,5.24526122]
[1760037578818,16.04253563,218.17,218.1,0.66]
[1760037578993,4.58358161,218.17,218.1,0.66]
[1760037580412,4.58337152,218.18,218.1,5.24490395]
[1760037580617,4.58337152,218.18,218.11,0.66]
[1760037583642,5.10337152,218.18,218.11,0.66]
[1760037584433,5.10337152,218.18,218.11,5.24478193]
[1760037584743,4.58337152,218.18,218.12,0.66]
[1760037585212,4.58337152,218.18,218.12,80.96]
[1760037586306,7.63992353,218.18,218.12,80.96]
[1760037586720,7.63992353,218.18,218.13,0.67]
[1760037586922,4.58337152,218.18,218.14,0.67]
[1760037587915,4.58337152,218.18,218.13,80.3]
[1760037588115,4.58337152,218.18,218.13,80.97]
[1760037588817,4.58337152,218.18,218.14,0.67]
[1760037591017,4.58337152,218.18,218.14,80.97]
[1760037591532,4.58337152,218.18,218.14,80.3]
[1760037592229,4.58337152,218.18,218.14,80.97]
[1760037594339,4.58337152,218.18,218.14,80.3]
[1760037594531,4.58337152,218.18,218.15,0.67]
[1760037595248,7.64812171,218.18,218.15,0.67]
[1760037595536,7.64812171,218.18,218.14,80.3]
[1760037595735,7.64812171,218.18,218.14,80.97]
[1760037596122,4.58337152,218.18,218.14,80.97]
[1760037596323,7.6498319,218.18,218.14,80.97]
[1760037596531,7.6498319,218.18,218.15,0.67]
[1760037597027,11.4561828,218.23,218.16,0.67]
[1760037597240,14.52225654,218.23,218.16,0.67]
[1760037598236,4.58253139,218.22,218.16,5.25376272]
[1760037598440,7.64860513,218.22,218.17,0.67]
[1760037598821,7.64860513,218.22,218.18,0.67]
[1760037599217,7.64860513,218.22,218.19,0.67]
[1760037599542,3.06607374,218.22,218.2,0.67]
[1760037599747,7.64859642,218.23,218.2,0.67]
[1760037600732,7.64859642,218.23,218.17,0.67]
[1760037600930,0.52,218.22,218.14,0.67]
[1760037601123,3.58607374,218.21,218.14,0.67]
[1760037601450,3.06607374,218.22,218.15,10.87647521]
[1760037601753,3.06607374,218.25,218.19,10.87647521]
[1760037601961,3.06607374,218.25,218.2,0.67]
[1760037602124,3.58607374,218.27,218.21,0.67]
[1760037602624,8.16756835,218.27,218.21,0.67]
[1760037603137,3.06607374,218.27,218.21,85.55272628]
[1760037603338,3.06607374,218.29,218.22,11.53647521]
[1760037603551,3.58607374,218.3,218.23,0.66]
[1760037603922,3.58607374,218.3,218.23,80.96]
[1760037604326,8.16693851,218.3,218.23,80.3]
[1760037604531,7.64693851,218.3,218.24,0.66]
[1760037606152,3.06607374,218.3,218.24,5.24203668]
[1760037606445,22.39017704,218.31,218.25,0.66]
[1760037607629,17.809504,218.31,218.25,85.54171091]
[1760037607829,22.39016427,218.31,218.26,0.66]
[1760037608035,22.39016427,218.31,218.26,80.96]
[1760037608322,22.39016427,218.31,218.27,0.66]
[1760037609326,17.809504,218.31,218.26,80.3]
[1760037609532,17.809504,218.31,218.27,0.66]
[1760037610134,17.809504,218.31,218.27,80.96]
[1760037610451,17.809504,218.31,218.28,0.66]
[1760037611455,17.809504,218.31,218.29,4.58106189]
[1760037611639,17.809504,218.31,218.3,32.94]
[1760037612036,0.2,218.34,218.31,62.490496]
[1760037612364,0.2,218.34,218.31,63.150496]
[1760037612545,0.2,218.34,218.32,0.66]
[1760037613055,0.2,218.34,218.32,5.24035733]
[1760037613256,0.2,218.34,218.33,0.66]
[1760037614945,0.2,218.34,218.33,37.50022259]
[1760037615157,0.2,218.35,218.34,10.87647521]
[1760037615337,0.2,218.35,218.34,11.53647521]
[1760037618356,0.2,218.35,218.34,16.11648803]
[1760037620333,0.2,218.35,218.34,11.53647521]
[1760037620755,0.2,218.38,218.36,62.290496]
[1760037620946,0.2,218.38,218.37,32.26]
[1760037621850,0.2,218.38,218.37,32.92]
[1760037626250,0.2,218.38,218.37,32.26]
[1760037626640,0.2,218.38,218.37,94.550496]
[1760037627763,0.2,218.38,218.37,95.210496]
[1760037628341,0.2,218.38,218.37,94.550496]
[1760037630769,0.2,218.38,218.37,62.290496]
[1760037632169,0.2,218.38,218.37,62.950496]
[1760037633467,0.2,218.38,218.37,62.960496]
[1760037633864,0.2,218.38,218.37,62.290496]
[1760037634241,0.2,218.38,218.37,62.960496]
[1760037635146,0.2,218.38,218.37,62.290496]
[1760037635353,0.2,218.38,218.37,62.960496]
[1760037640671,0.4764,218.38,218.37,62.960496]
[1760037643464,0.4764,218.38,218.37,73.83697121]
[1760037647369,0.4764,218.38,218.37,73.16697121]
[1760037647684,0.4764,218.38,218.37,105.40697121]
[1760037647887,0.4764,218.38,218.37,106.08697121]
[1760037650692,0.4764,218.38,218.37,32.24]
[1760037650860,0.4764,218.38,218.36,32.24]
[1760037651058,0.4764,218.38,218.33,0.68]
[1760037651258,0.71,218.37,218.34,32.24]
[1760037651483,0.4764,218.38,218.35,32.24]
[1760037651676,0.4764,218.38,218.34,32.24]
[1760037652179,0.4764,218.38,218.34,32.92]
[1760037654480,3.52983315,218.38,218.34,32.92]
[1760037654695,0.4764,218.38,218.34,32.92]
[1760037654859,3.52983315,218.38,218.34,32.92]
[1760037655062,0.4764,218.38,218.34,32.92]
[1760037655465,0.4764,218.38,218.35,0.68]
[1760037655882,0.4764,218.38,218.34,32.24]
[1760037656164,0.4764,218.38,218.34,32.92]
[1760037656686,0.4764,218.38,218.35,0.68]
[1760037657479,3.5599178,218.38,218.35,0.68]
[1760037657671,0.4764,218.38,218.35,0.68]
[1760037657872,3.5599178,218.38,218.35,0.68]
[1760037658073,0.4764,218.38,218.35,0.68]
[1760037658273,3.5599178,218.38,218.35,0.68]
[1760037658491,0.4764,218.38,218.35,0.68]
[1760037658786,3.56072131,218.38,218.34,32.24]
[1760037658983,0.4764,218.38,218.34,32.92]
[1760037659200,0.4764,218.38,218.35,0.68]
[1760037659690,0.4764,218.38,218.34,32.24]
[1760037660075,3.79623611,218.37,218.34,32.24]
[1760037660390,0.4764,218.38,218.35,11.55647521]
[1760037660569,0.4764,218.38,218.36,32.24]
[1760037660894,0.4764,218.38,218.37,10.87647521]
[1760037661065,0.4764,218.38,218.37,11.55647521]
[1760037661394,0.4764,218.38,218.37,16.13585882]
[1760037662494,0.4764,218.38,218.37,11.55647521]
[1760037662892,0.4764,218.38,218.37,16.13585882]
[1760037663394,0.4764,218.38,218.37,11.55647521]
[1760037664187,0.4764,218.38,218.37,16.13585882]
[1760037664367,0.4764,218.38,218.37,48.37585882]
[1760037664777,0.4764,218.38,218.37,43.79647521]
[1760037665387,0.4764,218.38,218.37,106.08697121]
[1760037665688,0.4764,218.38,218.37,105.40697121]
[1760037665895,0.4764,218.38,218.37,95.190496]
[1760037666084,0.4764,218.38,218.37,94.510496]
[1760037666267,0.4764,218.38,218.37,62.290496]
[1760037666696,0.4764,218.38,218.37,62.950496]
[1760037668094,0.4764,218.38,218.37,73.82697121]
[1760037668980,3.56290444,218.38,218.34,62.950496]
[1760037669190,0.4764,218.38,218.35,32.22]
[1760037669594,1.1564,218.38,218.35,32.22]
[1760037669887,0.4764,218.38,218.35,32.22]
[1760037670275,3.76746076,218.37,218.33,94.510496]
[1760037670476,0.68,218.36,218.33,94.510496]
[1760037670883,3.76768552,218.35,218.31,62.290496]
[1760037671083,3.76768552,218.34,218.29,32.22]
[1760037671285,0.68,218.34,218.29,32.22]
[1760037671494,16.50362254,218.38,218.29,32.22]
[1760037671692,0.68,218.33,218.29,32.22]
[1760037672185,3.08670385,218.35,218.29,32.22]
[1760037672372,3.08670385,218.34,218.29,32.22]
[1760037672579,0.68,218.34,218.29,32.22]
[1760037672778,0.68,218.34,218.29,32.88]
[1760037672979,3.76586998,218.33,218.26,73.16697121]
[1760037673195,0.68,218.32,218.27,32.22]
[1760037673677,0.68,218.31,218.27,32.22]
[1760037674284,0.68,218.3,218.26,62.290496]
[1760037674870,5.26059121,218.32,218.26,62.950496]
[1760037675576,4.58085203,218.3,218.25,94.510496]
[1760037675793,5.26085203,218.3,218.25,95.170496]
[1760037675984,4.58085203,218.3,218.25,94.510496]
[1760037676187,4.58040097,218.33,218.26,0.66]
[1760037676594,16.71095746,218.33,218.26,0.66]
[1760037676797,16.71095746,218.33,218.25,62.290496]
[1760037677098,3.76137643,218.32,218.25,62.290496]
[1760037677288,0.68,218.31,218.25,62.290496]
[1760037677487,0.68,218.31,218.24,32.22]
[1760037678404,3.08137643,218.32,218.24,32.22]
[1760037678586,0.68,218.3,218.24,32.22]
[1760037678788,0.68,218.29,218.24,32.22]
[1760037678980,0.68,218.28,218.24,32.22]
[1760037680206,5.26142091,218.28,218.24,32.22]
[1760037680378,0.68,218.27,218.22,62.290496]
[1760037680583,0.68,218.26,218.19,0.66]
[1760037681284,4.58142091,218.28,218.19,0.66]
[1760037681602,0.2764,218.26,218.2,43.11647521]
[1760037681796,0.2764,218.26,218.21,0.68]
[1760037681995,0.2764,218.26,218.22,32.24]
[1760037682195,0.2764,218.26,218.23,5.26220086]
[1760037682585,0.2764,218.26,218.24,0.68]
[1760037682793,0.2764,218.26,218.25,32.24]
[1760037682994,0.2764,218.26,218.25,32.92]
[1760037686302,0.2764,218.26,218.25,95.210496]
[1760037693308,0.2764,218.26,218.25,99.79239748]
[1760037693509,0.91,218.38,218.27,10.87647521]
[1760037693699,0.91,218.38,218.29,10.87647521]
[1760037693897,0.91,218.38,218.3,32.91]
[1760037694083,0.91,218.38,218.31,0.67]
[1760037694289,5.48922135,218.38,218.31,0.67]
[1760037696306,5.48922135,218.38,218.31,32.24]
[1760037696307,16.93715614,218.38,218.31,32.24]
[1760037696605,0.71,218.37,218.28,0.67]
[1760037696812,0.71,218.37,218.29,32.24]
[1760037697009,0.71,218.36,218.29,32.24]
[1760037697209,0.71,218.35,218.29,32.24]
[1760037697712,4.58001282,218.34,218.29,32.24]
[1760037697916,5.29001282,218.34,218.29,32.91]
[1760037699011,4.58001282,218.34,218.29,32.24]
[1760037699218,4.58001282,218.34,218.3,0.67]
[1760037699516,4.58001282,218.34,218.29,32.24]
[1760037699698,4.58001282,218.34,218.3,0.67]
[1760037699898,4.57980306,218.35,218.3,0.67]
[1760037700199,5.28980306,218.35,218.3,0.67]
[1760037700717,16.73931073,218.35,218.3,0.67]
[1760037701011,16.73931073,218.35,218.25,31.67647521]
[1760037701012,0.71,218.34,218.25,11.54647521]
[1760037701189,0.71,218.33,218.25,11.54647521]
[1760037701394,16.73931073,218.35,218.26,0.67]
[1760037701600,4.57980306,218.35,218.27,43.09647521]
[1760037701804,4.57980306,218.35,218.28,0.67]
[1760037702004,16.02857666,218.36,218.28,0.67]
[1760037706204,16.71857666,218.36,218.28,0.67]
[1760037706824,16.71857666,218.36,218.28,62.684096]
[1760037707122,16.71857666,218.36,218.28,62.014096]
[1760037707317,16.71857666,218.36,218.29,0.66]
[1760037709308,4.57959333,218.36,218.3,10.87647521]
[1760037709512,7.85499664,218.38,218.31,0.66]
[1760037709812,7.85499664,218.38,218.31,32.88]
[1760037710031,8.54499664,218.38,218.32,0.66]
[1760037712232,19.99293143,218.38,218.31,0.66]
[1760037712443,4.57959333,218.36,218.3,94.234096]
[1760037712647,4.57959333,218.36,218.31,0.66]
[1760037712851,4.57959333,218.36,218.31,62.674096]
[1760037713054,5.26959333,218.36,218.31,62.674096]
[1760037714347,4.57959333,218.36,218.32,0.66]
[1760037714548,4.57959333,218.36,218.33,0.66]
[1760037714750,4.57959333,218.36,218.31,62.014096]
[1760037714751,4.57959333,218.36,218.31,62.674096]
[1760037715633,4.57959333,218.36,218.31,62.014096]
[1760037715837,4.57959333,218.36,218.32,0.66]
[1760037716051,4.57959333,218.36,218.31,62.014096]
[1760037716253,4.57959333,218.36,218.32,0.66]
[1760037716549,4.57959333,218.36,218.33,0.66]
[1760037717548,3.0757121,218.37,218.34,0.66]
[1760037717845,0.2,218.38,218.35,0.66]
[1760037718027,0.2,218.38,218.35,62.674096]
[1760037718224,3.2757121,218.38,218.35,62.674096]
[1760037718426,0.2,218.38,218.35,62.674096]
[1760037718621,0.2,218.38,218.35,62.014096]
[1760037718845,3.28046558,218.38,218.35,62.014096]
[1760037719148,5.26939089,218.37,218.35,62.014096]
[1760037719346,0.69,218.36,218.35,62.014096]
[1760037719540,3.77046558,218.36,218.28,11.44676669]
[1760037719740,3.77046558,218.35,218.27,32.22]
[1760037719926,0.69,218.34,218.27,32.88]
[1760037720128,0.69,218.34,218.28,0.66]
[1760037720624,3.08046558,218.35,218.28,0.66]
[1760037721027,3.28046558,218.38,218.29,36.80090591]
[1760037721253,3.28046558,218.38,218.3,0.66]
[1760037722250,4.57938741,218.37,218.3,5.24078229]
[1760037722532,4.57938741,218.37,218.31,0.66]
[1760037722931,3.28046558,218.38,218.31,0.66]
[1760037723338,0.2,218.38,218.31,0.66]
[1760037723848,20.8,218.36,218.26,0.71]
[1760037724149,36.83004488,218.34,218.24,32.93]
[1760037724345,3.76046558,218.33,218.24,0.71]
[1760037724930,3.76046558,218.33,218.24,62.724096]
[1760037725132,0.68,218.32,218.24,62.724096]
[1760037725358,0.68,218.31,218.24,62.724096]
[1760037726337,4.58085203,218.3,218.24,62.724096]
[1760037727240,20.8,218.34,218.25,0.71]
[1760037727457,8.34220183,218.33,218.25,0.71]
[1760037727662,19.79275832,218.33,218.24,62.014096]
[1760037727864,3.76197924,218.32,218.24,62.014096]
[1760037728044,0.68,218.31,218.24,62.014096]
[1760037728486,4.58085203,218.3,218.24,62.014096]
[1760037728769,5.26085203,218.3,218.24,62.014096]
[1760037728955,16.71298212,218.3,218.24,62.014096]
[1760037730168,3.76254132,218.29,218.24,62.014096]
[1760037730370,16.03445116,218.28,218.2,62.724096]
[1760037730584,0.68,218.27,218.2,62.724096]
[1760037730766,0.68,218.27,218.2,0.71]
[1760037731069,4.58127176,218.28,218.2,0.71]
[1760037731268,0.68,218.27,218.2,0.71]
[1760037731463,16.03445116,218.28,218.2,0.71]
[1760037732254,0.68,218.27,218.2,0.71]
[1760037732974,4.58169156,218.26,218.2,0.71]
[1760037734658,16.03592046,218.26,218.2,0.71]
[1760037734861,16.71592046,218.26,218.19,94.234096]
[1760037735163,0.68,218.25,218.19,94.234096]
[1760037735572,0.68,218.25,218.19,62.014096]
[1760037735776,4.58211143,218.24,218.19,62.014096]
[1760037735980,4.58211143,218.24,218.2,0.71]
[1760037736289,4.58193431,218.25,218.21,0.71]
[1760037736460,4.58193431,218.25,218.22,0.71]
[1760037736656,4.58193431,218.25,218.19,62.724096]
[1760037737084,16.03668803,218.25,218.19,62.724096]
[1760037737998,16.03668803,218.25,218.19,62.014096]
[1760037737999,16.71668803,218.25,218.19,62.014096]
[1760037738293,16.71668803,218.25,218.19,62.724096]
[1760037738590,4.58193431,218.25,218.2,0.71]
[1760037738968,13.75988992,218.3,218.21,32.22]
[1760037739193,4.58043239,218.32,218.22,11.58647521]
[1760037739376,4.58043239,218.32,218.23,0.71]
[1760037739581,4.58043239,218.32,218.24,32.22]
[1760037739782,4.58043239,218.32,218.25,0.71]
[1760037739999,4.58043239,218.32,218.26,4.58169156]
[1760037740294,4.58043239,218.32,218.27,0.71]
[1760037740786,4.58043239,218.32,218.28,0.71]
[1760037741385,4.58022259,218.33,218.28,0.71]
[1760037741588,19.10724035,218.33,218.25,0.71]
[1760037741770,16.03077908,218.33,218.25,0.71]
[1760037743490,4.5806422,218.31,218.25,0.71]
[1760037743807,0.68,218.3,218.22,14.43610427]
[1760037744097,0.68,218.29,218.19,193.594096]
[1760037744270,0.68,218.29,218.2,0.68]
[1760037745300,3.07659613,218.3,218.2,0.68]
[1760037745502,4.58106189,218.29,218.21,32.22]
[1760037745684,5.26106189,218.29,218.21,32.9]
[1760037746084,16.71371661,218.29,218.21,32.22]
[1760037746298,16.71371661,218.29,218.22,0.68]
[1760037746584,4.58106189,218.29,218.22,0.68]
[1760037747492,16.71331619,218.3,218.22,0.68]
[1760037747694,3.07634153,218.29,218.22,0.68]
[1760037748905,3.07634153,218.29,218.22,5.26251452]
[1760037749217,3.07634153,218.29,218.22,0.68]
[1760037750321,16.03445116,218.28,218.22,0.68]
[1760037750622,16.71445116,218.28,218.2,32.9]
[1760037750919,3.75542111,218.27,218.2,32.9]
[1760037751087,3.75542111,218.27,218.21,0.68]
[1760037751285,0.68,218.27,218.21,0.68]
[1760037751516,0.68,218.27,218.21,62.694096]
[1760037752097,16.03445116,218.28,218.21,62.694096]
[1760037752293,0.68,218.33,218.22,0.68]
[1760037752515,7.65527361,218.34,218.23,10.87647521]
[1760037752715,7.65527361,218.34,218.24,32.89]
[1760037753016,5.30001282,218.34,218.25,0.67]
[1760037753224,16.75035812,218.34,218.25,0.67]
[1760037753415,4.58043239,218.32,218.25,0.67]
[1760037755423,4.58043239,218.32,218.25,5.25184012]
[1760037755603,4.58043239,218.32,218.26,0.67]
[1760037755933,3.07526079,218.33,218.29,20.8]
[1760037756096,0.2,218.38,218.25,4.58184012]
[1760037756097,0.2,218.38,218.3,64.56647521]
[1760037756424,0.2,218.38,218.31,0.67]
[1760037757722,0.2,218.38,218.34,31.67647521]
[1760037757928,0.2,218.38,218.35,32.89]
[1760037758098,0.2,218.38,218.36,10.87647521]
[1760037758296,0.2,218.38,218.36,11.54647521]
[1760037758507,0.2,218.38,218.37,11.54647521]
[1760037759323,0.2,218.38,218.37,0.67]
[1760037760602,0.2,218.38,218.37,5.24938361]
[1760037762004,0.2,218.38,218.37,0.67]
[1760037763227,0.2,218.38,218.37,62.684096]
[1760037764615,0.2,218.38,218.37,94.884096]
[1760037765207,0.2,218.38,218.37,62.684096]
[1760037765512,0.2,218.38,218.37,94.884096]
[1760037765713,0.2,218.38,218.37,94.874096]
[1760037765914,0.2,218.38,218.37,0.66]
[1760037766110,0.2,218.38,218.37,32.2]
[1760037766517,0.2,218.38,218.37,32.86]
[1760037767822,0.2,218.38,218.37,0.66]
[1760037768131,0.2,218.38,218.37,32.86]
[1760037769030,0.2,218.38,218.37,5.23938361]
[1760037769235,0.2,218.38,218.37,32.86]
[1760037772455,0.2,218.38,218.37,37.43938361]
[1760037772619,0.2,218.38,218.37,48.31585882]
[1760037774224,0.2,218.38,218.37,62.31170101]
[1760037781552,0.2,218.38,218.37,62.014096]
[1760037781733,0.2,218.38,218.37,94.194096]
[1760037781931,0.87,218.38,218.34,72.89057121]
[1760037782250,0.87,218.38,218.35,36.75970898]
[1760037782550,0.87,218.38,218.35,32.18]
[1760037782848,0.87,218.38,218.35,36.75975634]
[1760037783346,0.2,218.38,218.35,36.75975634]
[1760037784029,0.2,218.38,218.35,32.18]
[1760037785248,0.2,218.38,218.35,36.75974675]
[1760037787128,0.2,218.38,218.35,98.77384275]
[1760037787627,0.2,218.38,200.0,208.82014]
[1760037787628,0.66,218.37,218.28,62.014096]
[1760037787832,0.66,218.36,218.28,66.59525153]
[1760037788040,0.66,218.36,218.29,32.86]
[1760037788947,4.57980306,218.35,218.29,37.44093594]
[1760037789650,0.2,218.38,218.33,10.87647521]
[1760037789850,0.2,218.38,218.34,32.86]
[1760037790555,0.2,218.38,218.35,0.68]
[1760037790857,0.2,218.38,218.36,32.18]
[1760037792933,5.43918344,218.38,218.33,72.89057121]
[1760037793141,5.43918344,218.38,218.36,62.014096]
[1760037795640,4.77918344,218.38,218.36,62.014096]
[1760037796453,0.2,218.38,218.36,62.014096]
[1760037796657,0.2,218.38,218.37,0.68]
[1760037801762,0.2,218.38,218.37,5.25938361]
[1760037801965,0.2,218.38,218.37,67.27347961]
[1760037803254,0.2,218.38,218.37,62.694096]
[1760037809771,0.2,218.38,218.37,67.27347961]
[1760037810259,0.4751,218.38,218.37,67.27347961]
[1760037813669,0.4751,218.38,218.37,78.14995482]
[1760037816077,0.4751,218.38,218.37,110.32995482]
[1760037819382,0.4751,218.38,218.37,105.75057121]
[1760037819760,0.4751,218.38,218.37,110.32995482]
[1760037822671,0.69,218.44,218.38,61.538996]
[1760037822981,0.69,218.44,218.39,32.16]
[1760037823383,0.69,218.44,218.39,32.86]
[1760037824280,0.69,218.44,218.4,4.57875457]
[1760037824477,0.69,218.44,218.41,32.16]
[1760037824663,4.57789739,218.45,218.41,32.16]
[1760037824863,0.69,218.44,218.41,32.16]
[1760037825178,0.71,218.43,218.41,32.16]
[1760037825381,0.71,218.42,218.38,61.538996]
[1760037825579,0.71,218.41,218.39,32.16]
[1760037827186,3.06873465,218.44,218.39,32.16]
[1760037827385,0.71,218.43,218.39,32.16]
[1760037827587,0.71,218.42,218.39,32.16]
[1760037829086,4.57824051,218.43,218.39,32.16]
[1760037829290,0.71,218.41,218.39,32.16]
[1760037830184,5.28824051,218.43,218.39,32.16]
[1760037830384,0.71,218.42,218.39,32.16]
[1760037830687,5.28834255,218.42,218.39,32.16]
[1760037832987,4.57811933,218.44,218.39,32.16]
[1760037833289,0.71,218.44,218.39,0.66]
[1760037833588,3.06873465,218.46,218.4,32.82]
[1760037833811,4.57746271,218.47,218.41,0.66]
[1760037833978,4.57746271,218.47,218.42,32.16]
[1760037834176,4.57746271,218.47,218.43,0.66]
[1760037834373,4.57746271,218.47,218.44,0.66]
[1760037834579,4.57746271,218.47,218.44,32.82]
[1760037837892,7.84590126,218.48,218.44,32.82]
[1760037838273,4.77716661,218.48,218.45,0.66]
[1760037838495,7.84590126,218.48,218.44,32.16]
[1760037838808,20.8,218.45,218.33,0.66]
[1760037839102,7.61710295,218.44,218.34,0.66]
[1760037839408,3.06873465,218.43,218.34,0.66]
[1760037839576,3.77873465,218.42,218.34,0.66]
[1760037839783,4.57875457,218.4,218.34,0.66]
[1760037840078,8.35748922,218.4,218.34,0.66]
[1760037842301,3.06873465,218.39,218.34,32.82]
[1760037842703,3.71873465,218.39,218.34,32.82]
[1760037843001,5.22749702,218.46,218.36,10.87647521]
[1760037843308,3.08045871,218.45,218.37,0.72]
[1760037843610,3.08045871,218.45,218.38,32.18]
[1760037843779,3.08045871,218.45,218.38,32.9]
[1760037844410,7.65837484,218.44,218.39,0.72]
[1760037844595,4.57791613,218.44,218.4,0.72]
[1760037844784,7.65837484,218.44,218.4,0.72]
[1760037844984,4.57791613,218.44,218.4,0.72]
[1760037845183,7.65837484,218.44,218.4,0.72]
[1760037845379,4.57791613,218.44,218.4,0.72]
[1760037846505,4.57791613,218.44,218.4,62.258996]
[1760037846878,4.57791613,218.44,218.4,61.538996]
[1760037848104,3.08045871,218.45,218.41,0.72]
[1760037848405,7.65819893,218.45,218.42,0.72]
[1760037848592,4.57774022,218.45,218.42,62.258996]
[1760037848989,4.57774022,218.45,218.42,61.538996]
[1760037850585,3.08045871,218.46,218.43,0.72]
[1760037850788,7.65777152,218.47,218.43,0.72]
[1760037850992,3.08045871,218.47,218.44,0.72]
[1760037851205,3.08045871,218.47,218.45,0.72]
[1760037851397,7.65777519,218.47,218.45,0.72]
[1760037851889,7.65777519,218.47,218.43,0.72]
[1760037852092,7.65777519,218.47,218.44,0.72]
[1760037852511,7.65777519,218.47,218.44,62.258996]
[1760037853214,7.65777519,218.47,218.44,94.418996]
[1760037854812,7.65777519,218.47,218.44,61.538996]
[1760037855027,0.65,218.46,218.44,61.538996]
[1760037855316,4.57764185,218.46,218.44,61.538996]
[1760037856393,7.65810056,218.46,218.44,61.538996]
[1760037856605,4.57764185,218.46,218.44,61.538996]
[1760037856801,7.65810056,218.46,218.44,61.538996]
[1760037857027,4.57764185,218.46,218.44,61.538996]
[1760037857326,7.65810056,218.46,218.44,61.538996]
[1760037857617,4.57764185,218.46,218.44,62.258996]